Workbook

Sheet Building Consent Fee Summary
A3: Consent Fee Summary (Building Consent)
A5: Consent Reference Number: | B5: BCN/2017/2013/B | C5: Consent Address: | D5: 80 Byron Street | F5: B103 LU: 01.07.20 LR: 01.07.20 v28
A7: Accept:
A8: Type: | B8: Comments: | C8: Officer Name: | D8: Date: | E8: Hours Worked: | F8: Rate Per Hour: | G8: Fee:
A9: Lodging | C9: Bruce Lyon | D9: 2020-07-01 | E9: 0.33 | F9: =IF(C9=""," ",SUMPRODUCT((Z9=OFFSET('Role Fee Structure'!$C$4,0,0,'Role Fee Structure'!$AB$5))*(W9=OFFSET('Role Fee Structure'!$F$2,0,0,1,'Role Fee Structure'!$AB$4))*(D9>=OFFSET('Role Fee Structure'!$D$4,0,0,'Role Fee Structure'!$AB$5))*(D9<=OFFSET('Role Fee Structure'!$E$4,0,0,'Role Fee Structure'!$AB$5))*(OFFSET('Role Fee Structure'!$F$4,0,0,'Role Fee Structure'!$AB$5,'Role Fee Structure'!$AB$4)))) -> 120 | G9: =IF(C9="", " ",$E9*$F9) -> 39.6 | L9: =$A$7 -> Accept: | V9: Financial Year | W9: =TEXT(IF(MONTH(D9)>6,YEAR(D9)+1,YEAR(D9)),"####") -> 2021 | Y9: Role Type | Z9: =SUMPRODUCT((C9=OFFSET('Names of Officers'!$B$4,0,0,'Names of Officers'!$AB$6))*(D9>=OFFSET('Names of Officers'!$D$4,0,0,'Names of Officers'!$AB$6))*(D9<=OFFSET('Names of Officers'!$E$4,0,0,'Names of Officers'!$AB$6))*(OFFSET('Names of Officers'!$F$4,0,0,'Names of Officers'!$AB$6))) -> 59
F10: Total Fee: | G10: =SUMIF($L:$L,$A$7,$G:$G) -> 39.6
A12: PIM/Development Check:
A13: Type: | B13: Comments: | C13: Officer Name: | D13: Date: | E13: Hours Worked: | F13: Rate Per Hour: | G13: Fee:
A14: PIM Coordinator Sign-off | F14: Not Applicable | G14: =VLOOKUP(F14,PIMCOORD[#All],2,0) -> 0 | L14: =$A$12 -> PIM/Development Check:
F15: Total Fee: | G15: =SUMIF($L:$L,$A$12,$G:$G) -> 0
A17: Pre-acceptance Technical Review:
A18: Type: | B18: Comments: | C18: Officer Name: | D18: Date: | E18: Hours Worked: | F18: Rate Per Hour: | G18: Fee:
A19: Pre-acceptance technical review | C19: Michelle-Anne Reddock | D19: 2020-06-30 | E19: 0.83 | F19: =IF(C19=""," ",SUMPRODUCT((Z19=OFFSET('Role Fee Structure'!$C$4,0,0,'Role Fee Structure'!$AB$5))*(W19=OFFSET('Role Fee Structure'!$F$2,0,0,1,'Role Fee Structure'!$AB$4))*(D19>=OFFSET('Role Fee Structure'!$D$4,0,0,'Role Fee Structure'!$AB$5))*(D19<=OFFSET('Role Fee Structure'!$E$4,0,0,'Role Fee Structure'!$AB$5))*(OFFSET('Role Fee Structure'!$F$4,0,0,'Role Fee Structure'!$AB$5,'Role Fee Structure'!$AB$4)))) -> 180 | G19: =IF(C19="", " ",$E19*$F19) -> 149.4 | L19: =$A$17 -> Pre-acceptance Technical Review: | V19: Financial Year | W19: =TEXT(IF(MONTH(D19)>6,YEAR(D19)+1,YEAR(D19)),"####") -> 2020 | Y19: Role Type | Z19: =SUMPRODUCT((C19=OFFSET('Names of Officers'!$B$4,0,0,'Names of Officers'!$AB$6))*(D19>=OFFSET('Names of Officers'!$D$4,0,0,'Names of Officers'!$AB$6))*(D19<=OFFSET('Names of Officers'!$E$4,0,0,'Names of Officers'!$AB$6))*(OFFSET('Names of Officers'!$F$4,0,0,'Names of Officers'!$AB$6))) -> 81
F20: Total Fee: | G20: =SUMIF($L:$L,$A$17,$G:$G) -> 149.4
A22: Process and Grant:
A23: Type: | B23: Comments: | C23: Officer Name: | D23: Date: | E23: Hours Worked: | F23: Rate Per Hour: | G23: Fee:
A24: Processing | C24: Jim Nguyen | D24: 2020-07-02 | E24: 1.75 | F24: =IF(C24=""," ",SUMPRODUCT((Z24=OFFSET('Role Fee Structure'!$C$4,0,0,'Role Fee Structure'!$AB$5))*(W24=OFFSET('Role Fee Structure'!$F$2,0,0,1,'Role Fee Structure'!$AB$4))*(D24>=OFFSET('Role Fee Structure'!$D$4,0,0,'Role Fee Structure'!$AB$5))*(D24<=OFFSET('Role Fee Structure'!$E$4,0,0,'Role Fee Structure'!$AB$5))*(OFFSET('Role Fee Structure'!$F$4,0,0,'Role Fee Structure'!$AB$5,'Role Fee Structure'!$AB$4)))) -> 210 | G24: =IF(C24="", " ",$E24*$F24) -> 367.5 | L24: =$A$22 -> Process and Grant: | V24: Financial Year | W24: =TEXT(IF(MONTH(D24)>6,YEAR(D24)+1,YEAR(D24)),"####") -> 2021 | Y24: Role Type | Z24: =SUMPRODUCT((C24=OFFSET('Names of Officers'!$B$4,0,0,'Names of Officers'!$AB$6))*(D24>=OFFSET('Names of Officers'!$D$4,0,0,'Names of Officers'!$AB$6))*(D24<=OFFSET('Names of Officers'!$E$4,0,0,'Names of Officers'!$AB$6))*(OFFSET('Names of Officers'!$F$4,0,0,'Names of Officers'!$AB$6))) -> 3
A25: Processing | C25: Jim Nguyen | D25: 2020-07-20 | E25: 0.5 | F25: =IF(C25=""," ",SUMPRODUCT((Z25=OFFSET('Role Fee Structure'!$C$4,0,0,'Role Fee Structure'!$AB$5))*(W25=OFFSET('Role Fee Structure'!$F$2,0,0,1,'Role Fee Structure'!$AB$4))*(D25>=OFFSET('Role Fee Structure'!$D$4,0,0,'Role Fee Structure'!$AB$5))*(D25<=OFFSET('Role Fee Structure'!$E$4,0,0,'Role Fee Structure'!$AB$5))*(OFFSET('Role Fee Structure'!$F$4,0,0,'Role Fee Structure'!$AB$5,'Role Fee Structure'!$AB$4)))) -> 210 | G25: =IF(C25="", " ",$E25*$F25) -> 105 | L25: =$A$22 -> Process and Grant: | V25: Financial Year | W25: =TEXT(IF(MONTH(D25)>6,YEAR(D25)+1,YEAR(D25)),"####") -> 2021 | Y25: Role Type | Z25: =SUMPRODUCT((C25=OFFSET('Names of Officers'!$B$4,0,0,'Names of Officers'!$AB$6))*(D25>=OFFSET('Names of Officers'!$D$4,0,0,'Names of Officers'!$AB$6))*(D25<=OFFSET('Names of Officers'!$E$4,0,0,'Names of Officers'!$AB$6))*(OFFSET('Names of Officers'!$F$4,0,0,'Names of Officers'!$AB$6))) -> 3
A26: Processing | C26: Jim Nguyen | D26: 2020-07-21 | E26: 0.5 | F26: =IF(C26=""," ",SUMPRODUCT((Z26=OFFSET('Role Fee Structure'!$C$4,0,0,'Role Fee Structure'!$AB$5))*(W26=OFFSET('Role Fee Structure'!$F$2,0,0,1,'Role Fee Structure'!$AB$4))*(D26>=OFFSET('Role Fee Structure'!$D$4,0,0,'Role Fee Structure'!$AB$5))*(D26<=OFFSET('Role Fee Structure'!$E$4,0,0,'Role Fee Structure'!$AB$5))*(OFFSET('Role Fee Structure'!$F$4,0,0,'Role Fee Structure'!$AB$5,'Role Fee Structure'!$AB$4)))) -> 210 | G26: =IF(C26="", " ",$E26*$F26) -> 105 | L26: =$A$22 -> Process and Grant: | V26: Financial Year | W26: =TEXT(IF(MONTH(D26)>6,YEAR(D26)+1,YEAR(D26)),"####") -> 2021 | Y26: Role Type | Z26: =SUMPRODUCT((C26=OFFSET('Names of Officers'!$B$4,0,0,'Names of Officers'!$AB$6))*(D26>=OFFSET('Names of Officers'!$D$4,0,0,'Names of Officers'!$AB$6))*(D26<=OFFSET('Names of Officers'!$E$4,0,0,'Names of Officers'!$AB$6))*(OFFSET('Names of Officers'!$F$4,0,0,'Names of Officers'!$AB$6))) -> 3
A27: RFI Processing | C27: Jim Nguyen | D27: 2020-08-12 | E27: 0.75 | F27: =IF(C27=""," ",SUMPRODUCT((Z27=OFFSET('Role Fee Structure'!$C$4,0,0,'Role Fee Structure'!$AB$5))*(W27=OFFSET('Role Fee Structure'!$F$2,0,0,1,'Role Fee Structure'!$AB$4))*(D27>=OFFSET('Role Fee Structure'!$D$4,0,0,'Role Fee Structure'!$AB$5))*(D27<=OFFSET('Role Fee Structure'!$E$4,0,0,'Role Fee Structure'!$AB$5))*(OFFSET('Role Fee Structure'!$F$4,0,0,'Role Fee Structure'!$AB$5,'Role Fee Structure'!$AB$4)))) -> 210 | G27: =IF(C27="", " ",$E27*$F27) -> 157.5 | L27: =$A$22 -> Process and Grant: | V27: Financial Year | W27: =TEXT(IF(MONTH(D27)>6,YEAR(D27)+1,YEAR(D27)),"####") -> 2021 | Y27: Role Type | Z27: =SUMPRODUCT((C27=OFFSET('Names of Officers'!$B$4,0,0,'Names of Officers'!$AB$6))*(D27>=OFFSET('Names of Officers'!$D$4,0,0,'Names of Officers'!$AB$6))*(D27<=OFFSET('Names of Officers'!$E$4,0,0,'Names of Officers'!$AB$6))*(OFFSET('Names of Officers'!$F$4,0,0,'Names of Officers'!$AB$6))) -> 3
A28: Processing | C28: Jim Nguyen | D28: 2020-12-09 | E28: 0.33 | F28: =IF(C28=""," ",SUMPRODUCT((Z28=OFFSET('Role Fee Structure'!$C$4,0,0,'Role Fee Structure'!$AB$5))*(W28=OFFSET('Role Fee Structure'!$F$2,0,0,1,'Role Fee Structure'!$AB$4))*(D28>=OFFSET('Role Fee Structure'!$D$4,0,0,'Role Fee Structure'!$AB$5))*(D28<=OFFSET('Role Fee Structure'!$E$4,0,0,'Role Fee Structure'!$AB$5))*(OFFSET('Role Fee Structure'!$F$4,0,0,'Role Fee Structure'!$AB$5,'Role Fee Structure'!$AB$4)))) -> 210 | G28: =IF(C28="", " ",$E28*$F28) -> 69.3 | L28: =$A$22 -> Process and Grant: | V28: Financial Year | W28: =TEXT(IF(MONTH(D28)>6,YEAR(D28)+1,YEAR(D28)),"####") -> 2021 | Y28: Role Type | Z28: =SUMPRODUCT((C28=OFFSET('Names of Officers'!$B$4,0,0,'Names of Officers'!$AB$6))*(D28>=OFFSET('Names of Officers'!$D$4,0,0,'Names of Officers'!$AB$6))*(D28<=OFFSET('Names of Officers'!$E$4,0,0,'Names of Officers'!$AB$6))*(OFFSET('Names of Officers'!$F$4,0,0,'Names of Officers'!$AB$6))) -> 3
A29: Processing | C29: Jim Nguyen | D29: 2021-02-09 | E29: 0.17 | F29: =IF(C29=""," ",SUMPRODUCT((Z29=OFFSET('Role Fee Structure'!$C$4,0,0,'Role Fee Structure'!$AB$5))*(W29=OFFSET('Role Fee Structure'!$F$2,0,0,1,'Role Fee Structure'!$AB$4))*(D29>=OFFSET('Role Fee Structure'!$D$4,0,0,'Role Fee Structure'!$AB$5))*(D29<=OFFSET('Role Fee Structure'!$E$4,0,0,'Role Fee Structure'!$AB$5))*(OFFSET('Role Fee Structure'!$F$4,0,0,'Role Fee Structure'!$AB$5,'Role Fee Structure'!$AB$4)))) -> 210 | G29: =IF(C29="", " ",$E29*$F29) -> 35.7 | L29: =$A$22 -> Process and Grant: | V29: Financial Year | W29: =TEXT(IF(MONTH(D29)>6,YEAR(D29)+1,YEAR(D29)),"####") -> 2021 | Y29: Role Type | Z29: =SUMPRODUCT((C29=OFFSET('Names of Officers'!$B$4,0,0,'Names of Officers'!$AB$6))*(D29>=OFFSET('Names of Officers'!$D$4,0,0,'Names of Officers'!$AB$6))*(D29<=OFFSET('Names of Officers'!$E$4,0,0,'Names of Officers'!$AB$6))*(OFFSET('Names of Officers'!$F$4,0,0,'Names of Officers'!$AB$6))) -> 3
A30: RFI Processing | C30: Jim Nguyen | D30: 2021-02-19 | E30: 0.17 | F30: =IF(C30=""," ",SUMPRODUCT((Z30=OFFSET('Role Fee Structure'!$C$4,0,0,'Role Fee Structure'!$AB$5))*(W30=OFFSET('Role Fee Structure'!$F$2,0,0,1,'Role Fee Structure'!$AB$4))*(D30>=OFFSET('Role Fee Structure'!$D$4,0,0,'Role Fee Structure'!$AB$5))*(D30<=OFFSET('Role Fee Structure'!$E$4,0,0,'Role Fee Structure'!$AB$5))*(OFFSET('Role Fee Structure'!$F$4,0,0,'Role Fee Structure'!$AB$5,'Role Fee Structure'!$AB$4)))) -> 210 | G30: =IF(C30="", " ",$E30*$F30) -> 35.7 | L30: =$A$22 -> Process and Grant: | V30: Financial Year | W30: =TEXT(IF(MONTH(D30)>6,YEAR(D30)+1,YEAR(D30)),"####") -> 2021 | Y30: Role Type | Z30: =SUMPRODUCT((C30=OFFSET('Names of Officers'!$B$4,0,0,'Names of Officers'!$AB$6))*(D30>=OFFSET('Names of Officers'!$D$4,0,0,'Names of Officers'!$AB$6))*(D30<=OFFSET('Names of Officers'!$E$4,0,0,'Names of Officers'!$AB$6))*(OFFSET('Names of Officers'!$F$4,0,0,'Names of Officers'!$AB$6))) -> 3
A31: Processing | C31: Jim Nguyen | D31: 2021-03-23 | E31: 0.17 | F31: =IF(C31=""," ",SUMPRODUCT((Z31=OFFSET('Role Fee Structure'!$C$4,0,0,'Role Fee Structure'!$AB$5))*(W31=OFFSET('Role Fee Structure'!$F$2,0,0,1,'Role Fee Structure'!$AB$4))*(D31>=OFFSET('Role Fee Structure'!$D$4,0,0,'Role Fee Structure'!$AB$5))*(D31<=OFFSET('Role Fee Structure'!$E$4,0,0,'Role Fee Structure'!$AB$5))*(OFFSET('Role Fee Structure'!$F$4,0,0,'Role Fee Structure'!$AB$5,'Role Fee Structure'!$AB$4)))) -> 210 | G31: =IF(C31="", " ",$E31*$F31) -> 35.7 | L31: =$A$22 -> Process and Grant: | V31: Financial Year | W31: =TEXT(IF(MONTH(D31)>6,YEAR(D31)+1,YEAR(D31)),"####") -> 2021 | Y31: Role Type | Z31: =SUMPRODUCT((C31=OFFSET('Names of Officers'!$B$4,0,0,'Names of Officers'!$AB$6))*(D31>=OFFSET('Names of Officers'!$D$4,0,0,'Names of Officers'!$AB$6))*(D31<=OFFSET('Names of Officers'!$E$4,0,0,'Names of Officers'!$AB$6))*(OFFSET('Names of Officers'!$F$4,0,0,'Names of Officers'!$AB$6))) -> 3
A32: RFI Processing | C32: Jim Nguyen | D32: 2021-04-09 | E32: 0.75 | F32: =IF(C32=""," ",SUMPRODUCT((Z32=OFFSET('Role Fee Structure'!$C$4,0,0,'Role Fee Structure'!$AB$5))*(W32=OFFSET('Role Fee Structure'!$F$2,0,0,1,'Role Fee Structure'!$AB$4))*(D32>=OFFSET('Role Fee Structure'!$D$4,0,0,'Role Fee Structure'!$AB$5))*(D32<=OFFSET('Role Fee Structure'!$E$4,0,0,'Role Fee Structure'!$AB$5))*(OFFSET('Role Fee Structure'!$F$4,0,0,'Role Fee Structure'!$AB$5,'Role Fee Structure'!$AB$4)))) -> 210 | G32: =IF(C32="", " ",$E32*$F32) -> 157.5 | L32: =$A$22 -> Process and Grant: | V32: Financial Year | W32: =TEXT(IF(MONTH(D32)>6,YEAR(D32)+1,YEAR(D32)),"####") -> 2021 | Y32: Role Type | Z32: =SUMPRODUCT((C32=OFFSET('Names of Officers'!$B$4,0,0,'Names of Officers'!$AB$6))*(D32>=OFFSET('Names of Officers'!$D$4,0,0,'Names of Officers'!$AB$6))*(D32<=OFFSET('Names of Officers'!$E$4,0,0,'Names of Officers'!$AB$6))*(OFFSET('Names of Officers'!$F$4,0,0,'Names of Officers'!$AB$6))) -> 3
A33: RFI Processing | C33: Jim Nguyen | D33: 2021-04-13 | E33: 1.25 | F33: =IF(C33=""," ",SUMPRODUCT((Z33=OFFSET('Role Fee Structure'!$C$4,0,0,'Role Fee Structure'!$AB$5))*(W33=OFFSET('Role Fee Structure'!$F$2,0,0,1,'Role Fee Structure'!$AB$4))*(D33>=OFFSET('Role Fee Structure'!$D$4,0,0,'Role Fee Structure'!$AB$5))*(D33<=OFFSET('Role Fee Structure'!$E$4,0,0,'Role Fee Structure'!$AB$5))*(OFFSET('Role Fee Structure'!$F$4,0,0,'Role Fee Structure'!$AB$5,'Role Fee Structure'!$AB$4)))) -> 210 | G33: =IF(C33="", " ",$E33*$F33) -> 262.5 | L33: =$A$22 -> Process and Grant: | V33: Financial Year | W33: =TEXT(IF(MONTH(D33)>6,YEAR(D33)+1,YEAR(D33)),"####") -> 2021 | Y33: Role Type | Z33: =SUMPRODUCT((C33=OFFSET('Names of Officers'!$B$4,0,0,'Names of Officers'!$AB$6))*(D33>=OFFSET('Names of Officers'!$D$4,0,0,'Names of Officers'!$AB$6))*(D33<=OFFSET('Names of Officers'!$E$4,0,0,'Names of Officers'!$AB$6))*(OFFSET('Names of Officers'!$F$4,0,0,'Names of Officers'!$AB$6))) -> 3
A34: Fire Engineer | C34: Jason Dean | D34: 2020-07-10 | E34: 0.25 | F34: =IF(C34=""," ",SUMPRODUCT((Z34=OFFSET('Role Fee Structure'!$C$4,0,0,'Role Fee Structure'!$AB$5))*(W34=OFFSET('Role Fee Structure'!$F$2,0,0,1,'Role Fee Structure'!$AB$4))*(D34>=OFFSET('Role Fee Structure'!$D$4,0,0,'Role Fee Structure'!$AB$5))*(D34<=OFFSET('Role Fee Structure'!$E$4,0,0,'Role Fee Structure'!$AB$5))*(OFFSET('Role Fee Structure'!$F$4,0,0,'Role Fee Structure'!$AB$5,'Role Fee Structure'!$AB$4)))) -> 245 | G34: =IF(C34="", " ",$E34*$F34) -> 61.25 | L34: =$A$22 -> Process and Grant: | V34: Financial Year | W34: =TEXT(IF(MONTH(D34)>6,YEAR(D34)+1,YEAR(D34)),"####") -> 2021 | Y34: Role Type | Z34: =SUMPRODUCT((C34=OFFSET('Names of Officers'!$B$4,0,0,'Names of Officers'!$AB$6))*(D34>=OFFSET('Names of Officers'!$D$4,0,0,'Names of Officers'!$AB$6))*(D34<=OFFSET('Names of Officers'!$E$4,0,0,'Names of Officers'!$AB$6))*(OFFSET('Names of Officers'!$F$4,0,0,'Names of Officers'!$AB$6))) -> 4
A35: Fire Engineer | C35: Jason Dean | D35: 2020-07-21 | E35: 1.25 | F35: =IF(C35=""," ",SUMPRODUCT((Z35=OFFSET('Role Fee Structure'!$C$4,0,0,'Role Fee Structure'!$AB$5))*(W35=OFFSET('Role Fee Structure'!$F$2,0,0,1,'Role Fee Structure'!$AB$4))*(D35>=OFFSET('Role Fee Structure'!$D$4,0,0,'Role Fee Structure'!$AB$5))*(D35<=OFFSET('Role Fee Structure'!$E$4,0,0,'Role Fee Structure'!$AB$5))*(OFFSET('Role Fee Structure'!$F$4,0,0,'Role Fee Structure'!$AB$5,'Role Fee Structure'!$AB$4)))) -> 245 | G35: =IF(C35="", " ",$E35*$F35) -> 306.25 | L35: =$A$22 -> Process and Grant: | V35: Financial Year | W35: =TEXT(IF(MONTH(D35)>6,YEAR(D35)+1,YEAR(D35)),"####") -> 2021 | Y35: Role Type | Z35: =SUMPRODUCT((C35=OFFSET('Names of Officers'!$B$4,0,0,'Names of Officers'!$AB$6))*(D35>=OFFSET('Names of Officers'!$D$4,0,0,'Names of Officers'!$AB$6))*(D35<=OFFSET('Names of Officers'!$E$4,0,0,'Names of Officers'!$AB$6))*(OFFSET('Names of Officers'!$F$4,0,0,'Names of Officers'!$AB$6))) -> 4
A36: Fire Engineer | C36: Jason Dean | D36: 2020-08-11 | E36: 0.25 | F36: =IF(C36=""," ",SUMPRODUCT((Z36=OFFSET('Role Fee Structure'!$C$4,0,0,'Role Fee Structure'!$AB$5))*(W36=OFFSET('Role Fee Structure'!$F$2,0,0,1,'Role Fee Structure'!$AB$4))*(D36>=OFFSET('Role Fee Structure'!$D$4,0,0,'Role Fee Structure'!$AB$5))*(D36<=OFFSET('Role Fee Structure'!$E$4,0,0,'Role Fee Structure'!$AB$5))*(OFFSET('Role Fee Structure'!$F$4,0,0,'Role Fee Structure'!$AB$5,'Role Fee Structure'!$AB$4)))) -> 245 | G36: =IF(C36="", " ",$E36*$F36) -> 61.25 | L36: =$A$22 -> Process and Grant: | V36: Financial Year | W36: =TEXT(IF(MONTH(D36)>6,YEAR(D36)+1,YEAR(D36)),"####") -> 2021 | Y36: Role Type | Z36: =SUMPRODUCT((C36=OFFSET('Names of Officers'!$B$4,0,0,'Names of Officers'!$AB$6))*(D36>=OFFSET('Names of Officers'!$D$4,0,0,'Names of Officers'!$AB$6))*(D36<=OFFSET('Names of Officers'!$E$4,0,0,'Names of Officers'!$AB$6))*(OFFSET('Names of Officers'!$F$4,0,0,'Names of Officers'!$AB$6))) -> 4
A37: Fire Engineer | C37: Jason Dean | D37: 2020-08-13 | E37: 0.33 | F37: =IF(C37=""," ",SUMPRODUCT((Z37=OFFSET('Role Fee Structure'!$C$4,0,0,'Role Fee Structure'!$AB$5))*(W37=OFFSET('Role Fee Structure'!$F$2,0,0,1,'Role Fee Structure'!$AB$4))*(D37>=OFFSET('Role Fee Structure'!$D$4,0,0,'Role Fee Structure'!$AB$5))*(D37<=OFFSET('Role Fee Structure'!$E$4,0,0,'Role Fee Structure'!$AB$5))*(OFFSET('Role Fee Structure'!$F$4,0,0,'Role Fee Structure'!$AB$5,'Role Fee Structure'!$AB$4)))) -> 245 | G37: =IF(C37="", " ",$E37*$F37) -> 80.85 | L37: =$A$22 -> Process and Grant: | V37: Financial Year | W37: =TEXT(IF(MONTH(D37)>6,YEAR(D37)+1,YEAR(D37)),"####") -> 2021 | Y37: Role Type | Z37: =SUMPRODUCT((C37=OFFSET('Names of Officers'!$B$4,0,0,'Names of Officers'!$AB$6))*(D37>=OFFSET('Names of Officers'!$D$4,0,0,'Names of Officers'!$AB$6))*(D37<=OFFSET('Names of Officers'!$E$4,0,0,'Names of Officers'!$AB$6))*(OFFSET('Names of Officers'!$F$4,0,0,'Names of Officers'!$AB$6))) -> 4
A38: End Administration | C38: Lynette Daniell | D38: 2021-04-15 | E38: 1 | F38: =IF(C38=""," ",SUMPRODUCT((Z38=OFFSET('Role Fee Structure'!$C$4,0,0,'Role Fee Structure'!$AB$5))*(W38=OFFSET('Role Fee Structure'!$F$2,0,0,1,'Role Fee Structure'!$AB$4))*(D38>=OFFSET('Role Fee Structure'!$D$4,0,0,'Role Fee Structure'!$AB$5))*(D38<=OFFSET('Role Fee Structure'!$E$4,0,0,'Role Fee Structure'!$AB$5))*(OFFSET('Role Fee Structure'!$F$4,0,0,'Role Fee Structure'!$AB$5,'Role Fee Structure'!$AB$4)))) -> 120 | G38: 120 | L38: =$A$22 -> Process and Grant: | V38: Financial Year | W38: 2021 | Y38: Role Type | Z38: =SUMPRODUCT((C38=OFFSET('Names of Officers'!$B$4,0,0,'Names of Officers'!$AB$6))*(D38>=OFFSET('Names of Officers'!$D$4,0,0,'Names of Officers'!$AB$6))*(D38<=OFFSET('Names of Officers'!$E$4,0,0,'Names of Officers'!$AB$6))*(OFFSET('Names of Officers'!$F$4,0,0,'Names of Officers'!$AB$6))) -> 59
D39: Issuing Consent: | F39: Applicable | G39: =VLOOKUP(F39,IssueConsent[#All],2,0) -> 30 | L39: =$A$22 -> Process and Grant:
D40: Fixed Administration Fee: | F40: Not Applicable | G40: =VLOOKUP(F40,FixedAdminFee[#All],2,0) -> 0 | L40: Process and Grant:
D41: Certificate of Title: | E41: 0 | F41: Not Applicable | G41: =IF(AND(F41="Applicable",E41<1),"CHECK",E41*W41) -> 0 | L41: Process and Grant: | W41: =VLOOKUP(F41,CT[#All],2,0) -> 0
D42: External Contractors or Consultants: | F42: Not Applicable | G42: =VLOOKUP(F42,ExtContract[#All],2,0) -> 0 | L42: Process and Grant:
F43: Total Fee: | G43: =SUMIF($L:$L,$A$22,$G:$G) -> 1991
A45: Levies: | I45: Commercial Amendment
C46: Original Value of Work: | D46: 140000
A47: Amendment Value Of Work | D47: 5000 | E47: Increase | I47: Reduction Levy Calculator | N47: ACL | O47: BL | P47: BRL | Q47: text | R47: Residential Levy Charge Rates | S47: MBIE Threshold: | T47: 20444 | V47: Commercial Levy Charge Rates | W47: MBIE Threshold: | X47: 20444
A48: Accreditation Levy: | D48: =VLOOKUP(I45,M47:P52,2,0) -> 3 | E48: =VLOOKUP(I45,M47:Q52,5,0) -> ($0.60 for every $1,000 of estimated value) | I48: Original | J48: New Levy | K48: Connect Value | L48: =$A$45 -> Levies: | M48: Residential | N48: =ROUNDDOWN(D46,-3)*$R48 -> 56 | O48: =IF(D46<$T$47,"$0.00",ROUNDUP(D46,-3)*$R49) -> 245 | P48: =IF(D46<$T$48,"$0.00",ROUNDUP(D46,-3)*$R50) -> 140 | Q48: ($0.40 for every $1,000 of estimated value) | R48: 0.0004 | S48: BRANZ Threshold: | T48: 20000 | V48: 0.0006 | W48: BRANZ Threshold: | X48: 20000
A49: Building Levy (MBIE): | D49: =VLOOKUP(I45,M47:P52,3,0) -> 8.75 | E49: ($1.75 per $1,000 (or part thereof) of building work valued over $20,444) | H49: ACL | J49: =D48 -> 3 | K49: =(I49+J49) -> 3 | L49: Levies: | M49: Commercial | N49: =ROUNDDOWN(D46,-3)*$V48 -> 84 | O49: =IF(D46<$X$47,"$0.00",ROUNDUP(D46,-3)*$V49) -> 245 | P49: =IF(D46<$X$48,"$0.00",ROUNDUP(D46,-3)*$V50) -> 140 | Q49: ($0.60 for every $1,000 of estimated value) | R49: 0.00175 | V49: 0.00175
A50: Building Research Levy (BRANZ): | D50: =VLOOKUP(I45,M47:P52,4,0) -> 5 | E50: ($1 per $1,000 (or part thereof) of building work valued over $20,000) | H50: MBIE | J50: =D49 -> 8.75 | K50: =(I50+J50) -> 8.75 | L50: Levies: | M50: Residential Amendment | N50: =ROUNDDOWN(D47+D46,-3)*$R48-(ROUNDDOWN(D46,-3)*$R48) -> 2 | O50: =IF(($D$46+$D$47)<$T$47,IF($D$46>=$T$47,ROUNDUP($D$46,-3)*$R49*-1,0),IF($D$46>=$T$47,ROUNDUP(($D$47),-3)*$R49,ROUNDUP(($D$47+$D$46),-3)*$R49)) -> 8.75 | P50: =IF(($D$46+$D$47)<$T$48,IF($D$46>=$T$48,ROUNDUP($D$46,-3)*$R50*-1,0),IF($D$46>=$T$48,ROUNDUP(($D$47),-3)*$R50,ROUNDUP(($D$46+$D$47),-3)*$R50)) -> 5 | Q50: ($0.40 for every $1,000 of estimated value) | R50: 0.001 | V50: 0.001
E51: Total Fee: | G51: =SUMIF($L:$L,$A$45,$D:$D) -> 16.75 | H51: BRANZ | J51: 5 | K51: =(I51+J51) -> 5 | L51: Levies: | M51: Commercial Amendment | N51: =ROUNDDOWN(D47+D46,-3)*$V48-(ROUNDDOWN(D46,-3)*$V48) -> 3 | O51: =IF(($D$46+$D$47)<$X$47,IF($D$46>=$X$47,ROUNDUP($D$46,-3)*$V49*-1,0),IF($D$46>=$X$47,ROUNDUP(($D$47),-3)*$V49,ROUNDUP(($D$47+$D$46),-3)*$V49)) -> 8.75 | P51: =IF(($D$46+$D$47)<$X$48,IF($D$46>=$X$48,ROUNDUP($D$46,-3)*$V50*-1,0),IF($D$46>=$X$48,ROUNDUP(($D$47),-3)*$V50,ROUNDUP(($D$46+$D$47),-3)*$V50)) -> 5 | Q51: ($0.60 for every $1,000 of estimated value)
M52: <Please Select> | N52: CHECK | O52: CHECK | P52: CHECK | Q52: ($0.40 for every $1,000 of estimated value)
A53: Inspections:
A54: Type: | B54: Comments: | C54: Number of Inspections: | E54: Cost Per Inspection: | G54: Fee:
A55: < Please Select > | B55: No additional Inspections | C55: 0 | E55: =VLOOKUP(A55,InspectionCharge[#All],2,0) -> 0 | G55: =IF(OR(AND(A55="Residential", C55=0),AND(A55="Commercial", C55=0)),"CHECK",C55*E55) -> 0 | L55: =$A$53 -> Inspections:
E56: Total Fee: | G56: =SUMIF($L:$L,$A$53,$G:$G) -> 0
A58: Christchurch City Council Fees:
A59: Fee Type: | E59: Total Quantity: | F59: Rate Per Quantity | G59: Fee:
A60: Code Compliance Certificate | B60: No Code Compliance Certificate | E60: 0 | F60: =VLOOKUP(B60,CCC[#All],2,0) -> 0 | G60: =E60*F60 -> 0 | L60: =$A$58 -> Christchurch City Council Fees:
A61: Electronic File Management Fee | B61: Applicable | G61: =VLOOKUP(B61,ElectronicFile[#All],2,0) -> 52 | L61: =$A$58 -> Christchurch City Council Fees:
A62: No CCC Connection | E62: 0 | F62: =VLOOKUP(A62,OptCon[#All],2,0) -> 0 | G62: =IF(OR(AND(A62="Standard Water Connection:", E62=0),AND(A62="Stormwater Opening:", E62=0),AND(A62="Sewer Opening:", E62=0),AND(A62="Vehicle Crossing Inspection:", E62=0))," CHECK",E62*F62) -> 0 | L62: Christchurch City Council Fees:
A63: No Additional Fees | G63: =VLOOKUP(A63,OtherFees[#All],2,0) -> 0 | L63: Christchurch City Council Fees:
E64: Total Fee: | G64: =SUMIF($L:$L,$A$58,$G:$G) -> 52
A66: Subtotal (inc GST): | G66: =SUM(G10+G15+G20+G43+G51+G56+G64) -> 2248.75
A68: Less Deposit Paid (inc GST): | G68: 0
A70: Final Total Invoice (inc GST): | G70: =SUM(G10,G15,G20,G43,G51,G56,G64-G68) -> 2248.75
B76: Fee Summary
B78: Accept: | F78: =G10 -> 39.6
B80: PIM/Development Check: | F80: =G15 -> 0
B82: Pre-acceptance Technical Check: | F82: =G20 -> 149.4
B84: Process and Grant: | F84: =G43 -> 1991
B86: Inspections: | F86: =G56 -> 0
B88: Christchurch City Council Fees: | F88: =G64 -> 52
B89: Note: This fee is a summary only, please refer to the council fees section for a breakdown of the fees
B91: Accreditation Levy | F91: =D48 -> 3
B92: Building Levy | F92: =D49 -> 8.75
B93: Building Research Levy | F93: =D50 -> 5
B95: Subtotal (inc GST): | F95: =G66 -> 2248.75
B97: Less Deposit Paid (inc GST): | F97: =G68 -> 0
B99: Final Total Invoice (inc GST): | F99: =G70 -> 2248.75

Sheet PIM Only Consent Fee Summary
A3: Consent Fee Summary (PIM Only)
A5: Consent Reference Number: | B5: BCN/201X/XXXX | C5: Consent Address: | D5: ENTER ADDRESS | F5: B103 LU: 01.07.20 LR: 01.07.20 v28
A7: PIM/Development Check
A8: Type: | B8: Comments: | C8: Officer Name: | D8: Date: | E8: Hours Worked: | F8: Rate Per Hour: | G8: Fee:
A9: < Please Select > | C9: Please Select | D9: 2015-07-01 | E9: 0 | F9: =IF(C9=""," ",SUMPRODUCT((AA9=OFFSET('Role Fee Structure'!$C$4,0,0,'Role Fee Structure'!$AB$5))*(X9=OFFSET('Role Fee Structure'!$F$2,0,0,1,'Role Fee Structure'!$AB$4))*(D9>=OFFSET('Role Fee Structure'!$D$4,0,0,'Role Fee Structure'!$AB$5))*(D9<=OFFSET('Role Fee Structure'!$E$4,0,0,'Role Fee Structure'!$AB$5))*(OFFSET('Role Fee Structure'!$F$4,0,0,'Role Fee Structure'!$AB$5,'Role Fee Structure'!$AB$4)))) -> 0 | G9: =IF(C9="", " ",$E9*$F9) -> 0 | L9: =$A$7 -> PIM/Development Check | W9: Financial Year | X9: =TEXT(IF(MONTH(D9)>6,YEAR(D9)+1,YEAR(D9)),"####") -> 2016 | Z9: Role Type | AA9: =SUMPRODUCT((C9=OFFSET('Names of Officers'!$B$4,0,0,'Names of Officers'!$AB$6))*(D9>=OFFSET('Names of Officers'!$D$4,0,0,'Names of Officers'!$AB$6))*(D9<=OFFSET('Names of Officers'!$E$4,0,0,'Names of Officers'!$AB$6))*(OFFSET('Names of Officers'!$F$4,0,0,'Names of Officers'!$AB$6))) -> 0
D10: Certificate of Title: | E10: 0 | F10: Not Applicable | G10: =IF(AND(F10="Applicable",E10<1),"CHECK",E10*X10) -> 0 | L10: =$A$7 -> PIM/Development Check | X10: =VLOOKUP(F10,CT[#All],2,0) -> 0
D11: PIM Coordinator Sign Off | F11: Applicable | G11: =VLOOKUP(F11,PIMCOORD[#All],2,0) -> 30 | L11: PIM/Development Check
D12: Electronic File Management Fee | F12: Applicable | G12: =VLOOKUP(F12,ElectronicFile[#All],2,0) -> 52 | L12: PIM/Development Check
D13: Total Fee: | G13: =SUMIF($L:$L,$A$7,$G:$G) -> 82
A15: Less Deposit Paid (inc GST): | G15: 0
A17: Total Invoice (inc GST): | G17: =SUM(G13-G15) -> 82

Sheet Scanning | Printing Calculator
A3: Scanning
A4: Received:
A5: No. of pages: A4/A3 | B5: 0
A6: No. of pages: A2/Larger | B6: 0
A9: Printing
A10: No. of pages: A4 | B10: 0
A11: No. of pages: A3 | B11: 0
A12: No. of pages: A2 | B12: 0
A13: No. of pages: A1 | B13: 0
A16: Total Scanning Charge: | B16: ='Scanning Calculations'!C8 -> 0
A17: Total Printing Charge: | B17: ='Scanning Calculations'!O8 -> 0

Sheet Connect Amendment Input Calcs
B1: (For Connect Input Only) Levies:
C3: New levies | D3: Original levies | E3: Amendment 1 levies | F3: Amendment 2 levies | G3: Amendment 3 levies | H3: Total previous levies | I3: Difference (Adjust by these amounts)
B4: Accreditation Levy | H4: =SUM(D4:G4) -> 0 | I4: =C4-H4 -> 0
B5: Building Levy | H5: =SUM(D5:G5) -> 0 | I5: =C5-H5 -> 0
B6: Building Research Levy | H6: 0 | I6: 0

Sheet Scanning Calculations (hidden)
A1: DO NOT EDIT THE RED CELLS | M1: Printing Calculations
A3: Changes to the Scanning Fees can be made by editing the yellow cells. These changes will automatically feed through to the calculation formulae. | M3: A4 | N3: ='Scanning | Printing Calculator'!B10 -> 0 | O3: =N3*0.2 -> 0
M4: A3 | N4: ='Scanning | Printing Calculator'!B11 -> 0 | O4: =N4*2 -> 0
B5: No. of pages | E5: Scanning Fees | M5: A2 | N5: ='Scanning | Printing Calculator'!B12 -> 0 | O5: =N5*3.5 -> 0
B6: A3/A4 | C6: ='Scanning | Printing Calculator'!B5 -> 0 | E6: No. of pages | F6: Size | G6: Cost (inc. GST) | M6: A1 | N6: ='Scanning | Printing Calculator'!B13 -> 0 | O6: =N6*6.5 -> 0
B7: A2/Larger | C7: ='Scanning | Printing Calculator'!B6 -> 0 | E7: 1 to 20 | F7: A3/A4 | G7: 27.4
B8: TOTAL COST | C8: =C10+C14 -> 0 | E8: 21 to 40 | F8: A3/A4 | G8: 29.5 | M8: Total | O8: =SUM(O3:O6) -> 0
E9: 41 to 60 | F9: A3/A4 | G9: 33.5
B10: Calculations | C10: =IF(AND(C6>0,C6<21),G7,IF(AND(C6>20,C6<41),G8,IF(AND(C6>40,C6<61),G9,IF(AND(C6>60,C6<81),G10,IF(AND(C6>80,C6<101),G11,IF(AND(C6>100,C6<151),G12,IF(AND(C6>150,C6<251),G13,C11))))))) -> 0 | E10: 61 to 80 | F10: A3/A4 | G10: 37.9
B11: A3/A4 | C11: =IF(AND(C6>250,C6<351),G14,IF(AND(C6>350,C6<451),G15,IF(AND(C6>450,C6<551),G16,IF(AND(C6>550,C6<651),G17,IF(AND(C6>650,C6<751),G18,IF(AND(C6>750,C6<851),G19,IF(AND(C6>850,C6<951),G20,C12))))))) -> 0 | E11: 81 to 100 | F11: A3/A4 | G11: 42
C12: =IF(AND(C6>951),G21,0) -> 0 | E12: 101 to 150 | F12: A3/A4 | G12: 49.5
E13: 151 to 250 | F13: A3/A4 | G13: 70.5
B14: Calculations | C14: =IF(AND(C7>0,C7<21),G24,IF(AND(C7>20,C7<41),G25,IF(AND(C7>40,C7<61),G26,IF(AND(C7>60,C7<81),G27,IF(AND(C7>80,C7<101),G28,IF(AND(C7>100,C7<151),G29,IF(AND(C7>150,C7<251),G30,C15))))))) -> 0 | E14: 251 to 350 | F14: A3/A4 | G14: 141
B15: A2 or Larger | C15: =IF(AND(C7>250,C7<351),G31,IF(AND(C7>350,C7<451),G32,IF(AND(C7>450,C7<551),G33,IF(AND(C7>550,C7<651),G34,IF(AND(C7>650,C7<751),G35,IF(AND(C7>750,C7<851),G36,IF(AND(C7>850,C7<951),G37,C16))))))) -> 0 | E15: 351 to 450 | F15: A3/A4 | G15: 211.5
C16: =IF(AND(C7>951),G38,0) -> 0 | E16: 451 to 550 | F16: A3/A4 | G16: 282
E17: 551 to 650 | F17: A3/A4 | G17: 352.5
E18: 651 to 750 | F18: A3/A4 | G18: 423
E19: 751 to 850 | F19: A3/A4 | G19: 493.5
E20: 851 to 950 | F20: A3/A4 | G20: 564
E21: 951+ | F21: A3/A4 | G21: 634.5
E23: No. of pages | F23: Size | G23: Cost (inc. GST)
E24: 1 to 20 | F24: A2/Larger | G24: 27.5
E25: 21 to 40 | F25: A2/Larger | G25: 37.9
E26: 41 to 60 | F26: A2/Larger | G26: 59
E27: 61 to 80 | F27: A2/Larger | G27: 80
E28: 81 to 100 | F28: A2/Larger | G28: 100
E29: 101 to 150 | F29: A2/Larger | G29: 138
E30: 151 to 250 | F30: A2/Larger | G30: 160
E31: 251 to 350 | F31: A2/Larger | G31: 320
E32: 351 to 450 | F32: A2/Larger | G32: 480
E33: 451 to 550 | F33: A2/Larger | G33: 640
E34: 551 to 650 | F34: A2/Larger | G34: 800
E35: 651 to 750 | F35: A2/Larger | G35: 960
E36: 751 to 850 | F36: A2/Larger | G36: 1120
E37: 851 to 950 | F37: A2/Larger | G37: 1280
E38: 951+ | F38: A2/Larger | G38: 1440

Sheet Dropdowns (hidden)
A1: < Please Select > | C1: < Please Select > | E1: < Please Select > | G1: Inspection Type | H1: Charge | L1: IssueConsent | M1: Charge | P1: ItemNum | Q1: Charge
A2: Lodging | C2: Building (Hazards) Check | E2: Vetting | G2: < Please Select > | H2: 0 | L2: Applicable | M2: 30 | P2: < Please Select CCC Type> | Q2: 0
A3: Additional Information 1 | C3: Planning Check | E3: Communication | G3: Residential | H3: 200 | L3: Not Applicable | M3: 0 | P3: No Code Compliance Certificate | Q3: 0
A4: Additional Information 2 | C4: Drainage Report | E4: Processing | G4: Commercial | H4: 255 | P4: Residential solid or liquid fuel heater | Q4: 100
A5: Additional Information 3 | C5: PIM Administration | E5: RFI Processing | P5: Residential minor building work | Q5: 126
A6: Additional Information 4 | C6: Specialists | E6: Structural Engineer | L6: FixedAdminFee | M6: Charge | P6: Residential accessory buildings and residential alterations | Q6: 220
A7: Additional Information 5 | C7: Other | E7: Geotech Engineer | L7: Applicable | M7: 175 | P7: Residential new dwelling | Q7: 360
A8: Additional Information 6 | C8: Vetting | E8: Fire Engineer | L8: Not Applicable | M8: 0 | P8: Commercial 1-2, Residential multi-unit or alterations to a commercial 3 less than/equal to $500,000 | Q8: 550
A9: Additional Information 7 | C9: Admin | E9: Other Specialist Input | P9: Commercial 3 over $500,000 | Q9: 1200
A10: Additional Information 8 | E10: Meeting
A11: Additional Information 9 | E11: Other
A12: Additional Information 10 | E12: End Administration | L12: CT | M12: Charge | P12: Type | Q12: Charge
A13: Additional Information 11 | E13: Granting | L13: Applicable | M13: 14.4 | P13: < Please Select Connections > | Q13: 0
A14: Additional Information 12 | L14: Not Applicable | M14: 0 | P14: No CCC Connection | Q14: 0
A15: Additional Information 13 | P15: Standard Water Connection: | Q15: 995
A16: Additional Information 14 | P16: Stormwater Opening: | Q16: 125
A17: Additional Information 15 | P17: Sewer Opening: | Q17: 245
A18: Additional Information 16 | L18: PIMCOORD | M18: Charge | P18: Vehicle Crossing Inspection: | Q18: 153
A19: Additional Information 17 | L19: Applicable | M19: 30
A20: Additional Information 18 | L20: Not Applicable | M20: 0 | P20: Type | Q20: Charge
A21: Additional Information 19 | P21: < Please Select Other Fees > | Q21: 0
A22: Additional Information 20 | L22: ExtContract | M22: Charge | P22: No Additional Fees | Q22: 0
L23: Applicable | M23: ENTER VALUE | P23: Electronic File Management: | Q23: 52
L24: Not Applicable | M24: 0 | P24: Compliance Schedule (New): | Q24: 200
P25: Compliance Schedule (Amend): | Q25: 250
L26: Electronic File | M26: Charge | P26: Section 73 (Hazards): | Q26: 420
L27: Applicable | M27: 52 | P27: Section 75 (Multi Titles): | Q27: 420
L28: Not Applicable | M28: 0 | P28: Commercial/Residential PFVS: | Q28: ENTER VALUE
P29: NZ Fire Service Review: | Q29: ENTER VALUE
P30: Building Consent Authority Covenant: | Q30: ENTER VALUE
P31: Scanning Costs | Q31: ='Scanning Calculations'!C8 -> 0
P32: Printing Costs | Q32: ='Scanning Calculations'!O8 -> 0
P33: Other | Q33: ENTER VALUE

Sheet Names of Officers (hidden)
B2: F1 | C2: F2 | D2: F3 | E2: F4 | F2: F5 | G2: F6 | H2: F7 | I2: F8 | J2: F9 | K2: F10 | L2: F11 | M2: F12 | N2: F13 | O2: F14 | P2: F15 | Q2: F16 | R2: F17 | S2: F18 | T2: F19 | U2: F20 | V2: F21 | W2: F22 | X2: F23 | Y2: F24 | Z2: F25 | AA2: F26 | AB2: F27
B3: Name | C3: Role
B4: Please Select | F4: 0
B5: Aaron Edwards | C5: Planner 2/3 | D5: 2015-07-01 | E5: 3999-12-31 | F5: 37 | AA5: Num Dates | AB5: 1
B6: Aaron Harrison | C6: Opus Intermediate | D6: 2015-07-01 | E6: 2016-02-25 | F6: 26 | AA6: Num Rows | AB6: 511
B7: Aaron Haymes | C7: Snr Engineer/Team manager | D7: 2015-07-01 | E7: 3999-12-31 | F7: 6
B8: Abdul Musif | C8: Building Administrator | D8: 2015-07-01 | E8: 3999-12-31 | F8: 59
B9: Adam Modica | C9: PBO/Specialist Engineer | D9: 2015-07-01 | E9: 3999-12-31 | F9: 5
B10: Adam Wang | C10: BCO 1 | D10: 2015-07-01 | E10: 3999-12-31 | F10: 1
B11: Adelina Pop | C11: BCO 1 | D11: 2015-07-01 | E11: 3999-12-31 | F11: 1
B12: Adrian Cosby | C12: Drainage Site Audit 2 | D12: 2015-07-01 | E12: 3999-12-31 | F12: 51
B13: Adrienne Slattery | C13: Holmes Fire Experienced | D13: 2015-07-01 | E13: 2017-04-30 | F13: 19
B14: Adrienne Slattery | C14: Snr Engineer/Team manager | D14: 2017-05-01 | E14: 3999-12-31 | F14: 6
B15: Agnes van der Erf | C15: Environmental Health Officer | D15: 2015-07-01 | E15: 3999-12-31 | F15: 76
B16: Aimee Dodge | C16: Vetting & Allocation | D16: 2017-07-01 | E16: 3999-12-31 | F16: 81
B17: Al Wilson | C17: Opus Experienced | D17: 2015-07-01 | E17: 2021-02-16 | F17: 25
B18: Al Wilson | C18: WSP Experienced | D18: 2021-02-17 | E18: 3999-12-31 | F18: 25
B19: Alan Wilson | C19: Opus Experienced | D19: 2015-07-01 | E19: 2018-07-01 | F19: 25
B20: Alie Nieuwenhuize | C20: Building Administrator | D20: 2015-07-01 | E20: 2017-01-25 | F20: 59
B21: Alie Nieuwenhuize | C21: Building Officers (BWOF) | D21: 2017-01-26 | E21: 3999-12-31 | F21: 79
B22: Alison Tang | C22: PBO/Specialist Engineer | D22: 2019-01-01 | E22: 3999-12-31 | F22: 5
B23: Alison Thompson | C23: PBO/Specialist Engineer | D23: 2015-07-01 | E23: 3999-12-31 | F23: 5
B24: Alistair Sharp | C24: Planner Snr/Subdivision Officer etc | D24: 2015-07-01 | E24: 3999-12-31 | F24: 38
B25: Allen Pranesh | C25: Building Administrator | D25: 2015-07-01 | E25: 3999-12-31 | F25: 59
B26: Amarana Furminger | C26: BCO 1 | D26: 2015-07-01 | E26: 2016-09-11 | F26: 1
B27: Amarana Furminger | C27: BCO 2 | D27: 2016-09-12 | E27: 3999-12-31 | F27: 2
B28: Amber Watson | C28: Building Administrator | D28: 2015-07-01 | E28: 3999-12-31 | F28: 59
B29: Amon Brown | C29: Planner 2/3 | D29: 2015-07-01 | E29: 3999-12-31 | F29: 37
B30: Amy Barney | C30: Building Administrator | D30: 2015-07-01 | E30: 2018-01-31 | F30: 59
B31: Amy Barney | C31: Building Officers (BWOF) | D31: 2018-02-01 | E31: 3999-12-31 | F31: 79
B32: Amy Clark | C32: Building Administrator | D32: 2015-07-01 | E32: 2016-10-09 | F32: 59
B33: Amy Clark | C33: Planner 2/3 | D33: 2016-10-10 | E33: 2017-04-09 | F33: 37
B34: Amy Clark | C34: Building Administrator | D34: 2017-04-10 | E34: 2017-08-04 | F34: 59
B35: Amy Clark | C35: Planner 2/3 | D35: 2017-08-05 | E35: 3999-12-31 | F35: 37
B36: Amy Doherty | C36: BCO 2 | D36: 2016-09-12 | E36: 3999-12-31 | F36: 2
B37: Amy Law | C37: BCO 1 | D37: 2015-07-01 | E37: 2016-09-11 | F37: 1
B38: Amy Maxwell | C38: Planner 2/3 | D38: 2015-07-01 | E38: 3999-12-31 | F38: 37
B39: Ana de Jong | C39: BCO 2 | D39: 2015-07-01 | E39: 2016-04-10 | F39: 2
B40: Ana de Jong | C40: BCO 3 | D40: 2016-04-11 | E40: 3999-12-31 | F40: 3
B41: Ana Garrido Morales | C41: BCO 3 | D41: 2020-12-15 | E41: 3999-12-31 | F41: 3
B42: Andre Winkelman | C42: PBO/Specialist Engineer | D42: 2015-07-01 | E42: 3999-12-31 | F42: 5
B43: Andrei Cotiga | C43: Opus Experienced | D43: 2015-07-01 | E43: 3999-12-31 | F43: 25
B44: Andrew Dimock | C44: BCO 1 | D44: 2015-07-01 | E44: 2017-06-30 | F44: 1
B45: Andrew Dimock | C45: Vetting & Allocation | D45: 2017-07-01 | E45: 3999-12-31 | F45: 81
B46: Andrew Eames | C46: BCO 1 | D46: 2015-07-01 | E46: 2016-09-11 | F46: 1
B47: Andrew Eames | C47: BCO 3 | D47: 2016-09-12 | E47: 3999-12-31 | F47: 3
B48: Andrew Long | C48: Planner Snr/Subdivision Officer etc | D48: 2015-07-01 | E48: 3999-12-31 | F48: 38
B49: Andrew Smith | C49: Davis Ogilvie | D49: 2015-07-01 | E49: 2021-02-17 | F49: 69
B50: Andrew Stewart | C50: Snr BCO/Specialists | D50: 2015-07-01 | E50: 2018-08-31 | F50: 4
B51: Andrew Stewart | C51: PBO/Specialist Engineer | D51: 2018-09-01 | E51: 3999-12-31 | F51: 5
B52: Andy Christofferson | C52: Planner Snr/Subdivision Officer etc | D52: 2015-07-01 | E52: 3999-12-31 | F52: 38
B53: Andy Lee | C53: BCO 2 | D53: 2015-07-01 | E53: 2017-02-22 | F53: 2
B54: Andy Lee | C54: BCO 3 | D54: 2017-02-23 | E54: 3999-12-31 | F54: 3
B55: Angela O'Reilly | C55: Planner 2/3 | D55: 2015-07-01 | E55: 3999-12-31 | F55: 37
B56: Anne Edwards | C56: Building Administrator | D56: 2015-07-01 | E56: 3999-12-31 | F56: 59
B57: Aradhna Dutt | C57: BCO 2 | D57: 2015-07-01 | E57: 3999-12-31 | F57: 2
B58: Atheel Allos | C58: GHD Expert | D58: 2015-07-01 | E58: 3999-12-31 | F58: 12
B59: Aurecon Expert | C59: Aurecon Expert | D59: 2015-07-01 | E59: 3999-12-31 | F59: 8
B60: Aurecon Experienced | C60: Aurecon Experienced | D60: 2015-07-01 | E60: 3999-12-31 | F60: 9
B61: Avau Tito | C61: Building Administrator | D61: 2015-07-01 | E61: 3999-12-31 | F61: 59
B62: Azeema Aman | C62: Building Administrator | D62: 2015-07-01 | E62: 2016-05-01 | F62: 59
B63: Azeema Aman | C63: BCO 1 | D63: 2016-05-02 | E63: 2017-06-30 | F63: 1
B64: Azeema Aman | C64: Vetting & Allocation | D64: 2017-07-01 | E64: 2021-03-03 | F64: 81
B65: Banny Singh | C65: BCO 1 | D65: 2015-07-01 | E65: 2017-06-30 | F65: 1
B66: Banny Singh | C66: Vetting & Allocation | D66: 2017-07-01 | E66: 3999-12-31 | F66: 81
B67: Barbara Thomas | C67: Regulatory Advice Officer | D67: 2015-07-01 | E67: 2018-05-01 | F67: 62
B68: Barbara Thomas | C68: Planning Technician | D68: 2018-05-02 | E68: 3999-12-31 | F68: 63
B69: Barbara Tomlinson | C69: Water Supply Plan Tec 2 | D69: 2015-07-01 | E69: 3999-12-31 | F69: 54
B70: Barry Hemming | C70: BCO 2 | D70: 2015-07-01 | E70: 3999-12-31 | F70: 2
B71: Bastien Ballu | C71: Fire Review Solutions | D71: 2019-07-29 | E71: 2021-02-17 | F71: 24
B72: Bee Geok Chan | C72: BCO 1 | D72: 2015-07-01 | E72: 3999-12-31 | F72: 1
B73: Ben Healy | C73: Snr Engineer/Team manager | D73: 2015-07-01 | E73: 3999-12-31 | F73: 6
B74: Bex Hawksworth | C74: Davis Ogilvie | D74: 2018-03-12 | E74: 2021-02-17 | F74: 69
B75: Bill Dray | C75: PBO/Specialist Engineer | D75: 2015-07-01 | E75: 3999-12-31 | F75: 5
B76: Bill Harrington | C76: Planner 2/3 | D76: 2015-07-01 | E76: 3999-12-31 | F76: 37
B77: Biswadeep Ghosh | C77: WSP | D77: 2015-07-01 | E77: 3999-12-31 | F77: 23
B78: Bjorn Raasch | C78: Golder Associate Intermediate | D78: 2020-01-01 | E78: 2021-02-16 | F78: 17
B79: Bjorn Raasch | C79: Davis Ogilvie | D79: 2021-02-17 | E79: 3999-12-31 | F79: 69
B80: Bob Pritchard | C80: Subdivision Officer | D80: 2015-07-01 | E80: 3999-12-31 | F80: 42
B81: Bogdan Balliu-Bottesch | C81: Opus Experienced | D81: 2015-07-01 | E81: 2021-02-16 | F81: 25
B82: Bogdan Balliu-Bottesch | C82: WSP Experienced | D82: 2021-02-17 | E82: 3999-12-31 | F82: 25
B83: Bonnie Caesar | C83: Building Administrator | D83: 2015-07-01 | E83: 3999-12-31 | F83: 59
B84: Brenda Carter | C84: Snr BCO/Specialists | D84: 2015-07-01 | E84: 3999-12-31 | F84: 4
B85: Brendon Guyton | C85: Watkins | D85: 2015-07-01 | E85: 2017-01-25 | F85: 28
B86: Brendon Guyton | C86: Focus Consultancy | D86: 2017-01-26 | E86: 3999-12-31 | F86: 70
B87: Brent Watkins | C87: Watkins | D87: 2015-07-01 | E87: 2017-01-25 | F87: 28
B88: Brent Watkins | C88: Inspector (DSC Group) | D88: 2017-01-26 | E88: 3999-12-31 | F88: 74
B89: Brian Norton | C89: Snr BCO/Specialists | D89: 2015-07-01 | E89: 2018-08-31 | F89: 4
B90: Brian Norton | C90: PBO/Specialist Engineer | D90: 2018-09-01 | E90: 3999-12-31 | F90: 5
B91: Brian Wilson | C91: Senior Buidling Officer (BWOF) | D91: 2015-07-01 | E91: 3999-12-31 | F91: 80
B92: Bridget Crouch (nee Rowe) | C92: Building Administrator | D92: 2016-04-26 | E92: 2016-08-21 | F92: 59
B93: Bridget Crouch (nee Rowe) | C93: BCO 1 | D93: 2016-08-22 | E93: 2017-06-30 | F93: 1
B94: Bridget Crouch (nee Rowe) | C94: Vetting & Allocation | D94: 2017-07-01 | E94: 3999-12-31 | F94: 81
B95: Bridget Rowe | C95: Building Administrator | D95: 2015-07-01 | E95: 2016-04-25 | F95: 59
B96: Brittany Bradley Cane | C96: Planner 2/3 | D96: 2015-07-01 | E96: 2020-11-20 | F96: 37
B97: Brittany Ratka | C97: Planner 2/3 | D97: 2020-11-21 | E97: 3999-12-31 | F97: 37
B98: Bruce Craig | C98: PBO/Specialist Engineer | D98: 2015-07-01 | E98: 3999-12-31 | F98: 5
B99: Bruce Lyon | C99: Building Administrator | D99: 2015-07-01 | E99: 3999-12-31 | F99: 59
B100: Bryan McKay | C100: Snr BCO/Specialists | D100: 2015-07-01 | E100: 3999-12-31 | F100: 4
B101: BTW | C101: BTW Structural | D101: 2015-07-01 | E101: 3999-12-31 | F101: 10
B102: Calibre Consulting Ltd | C102: Calibre Experienced | D102: 2015-07-01 | E102: 2021-02-17 | F102: 61
B103: Callum Thornton | C103: BCO 3 | D103: 2020-05-04 | E103: 3999-12-31 | F103: 3
B104: Carlo Botha | C104: Planner 2/3 | D104: 2015-07-01 | E104: 3999-12-31 | F104: 37
B105: Cate McPherson | C105: BCO 3 | D105: 2020-05-04 | E105: 3999-12-31 | F105: 3
B106: Catherine Elvidge | C106: Planner Snr/Subdivision Officer etc | D106: 2015-07-01 | E106: 3999-12-31 | F106: 38
B107: Catherine McPherson | C107: BCO 3 | D107: 2020-05-04 | E107: 2020-11-01 | F107: 3
B108: Catriona MacPherson | C108: Building Administrator | D108: 2015-07-01 | E108: 3999-12-31 | F108: 59
B109: Cecile Coll | C109: Ext Spec/Consult Experienced | D109: 2015-07-01 | E109: 3999-12-31 | F109: 29
B110: Charlotte Walsh | C110: Building Administrator | D110: 2015-07-01 | E110: 3999-12-31 | F110: 59
B111: Chen (Weng-Kei Chen) | C111: Roading input | D111: 2015-07-01 | E111: 3999-12-31 | F111: 48
B112: Chi Chi Wang | C112: GHD Intermediate | D112: 2015-07-01 | E112: 3999-12-31 | F112: 14
B113: Chloe Stewart | C113: Planner 2/3 | D113: 2015-07-01 | E113: 3999-12-31 | F113: 37
B114: Chris Beckham | C114: PBO/Specialist Engineer | D114: 2015-07-01 | E114: 3999-12-31 | F114: 5
B115: Chris D'Arth | C115: Stephenson & Turner Fire Exp | D115: 2021-02-17 | E115: 3999-12-31 | F115: 82
B116: Chris Hewlett | C116: Planner Snr/Subdivision Officer etc | D116: 2015-07-01 | E116: 2016-02-15 | F116: 38
B117: Chris Hewlett | C117: Snr BCO/Specialists | D117: 2016-02-16 | E117: 2018-08-31 | F117: 4
B118: Chris Hewlett | C118: PBO/Specialist Engineer | D118: 2018-09-01 | E118: 3999-12-31 | F118: 5
B119: Chris van den Bosch | C119: Snr Engineer/Team manager | D119: 2015-07-01 | E119: 2017-10-29 | F119: 6
B120: Chris van den Bosch | C120: BCO 3 | D120: 2017-10-30 | E120: 3999-12-31 | F120: 3
B121: City Certifiers | C121: City Certifiers | D121: 2015-07-01 | E121: 2016-04-30 | F121: 64
B122: City Certifiers | C122: City Certifiers | D122: 2016-05-01 | E122: 2017-01-25 | F122: 64
B123: City Certifiers | C123: City Certifiers | D123: 2017-01-26 | E123: 3999-12-31 | F123: 64
B124: Claire Barry | C124: Building Administrator | D124: 2015-07-01 | E124: 3999-12-31 | F124: 59
B125: Clare Dale (Revell) | C125: Planner Snr/Subdivision Officer etc | D125: 2015-07-01 | E125: 3999-12-31 | F125: 38
B126: Claudia Stuart | C126: Building Administrator | D126: 2015-07-01 | E126: 2016-05-01 | F126: 59
B127: Claudia Stuart | C127: BCO 1 | D127: 2016-05-02 | E127: 2017-06-30 | F127: 1
B128: Claudia Stuart | C128: Vetting & Allocation | D128: 2017-07-01 | E128: 3999-12-31 | F128: 81
B129: Clement Maloney | C129: Opus Experienced | D129: 2015-07-01 | E129: 3999-12-31 | F129: 25
B130: Clive Anderson | C130: Golder Associate Expert | D130: 2015-07-01 | E130: 2021-02-17 | F130: 15
B131: Colleen Jones | C131: BCO 2 | D131: 2015-07-01 | E131: 3999-12-31 | F131: 2
B132: Craig Marshall | C132: Regulatory Advice Officer | D132: 2015-07-01 | E132: 2020-02-09 | F132: 62
B133: Craig Marshall | C133: Planning Technician | D133: 2020-02-10 | E133: 3999-12-31 | F133: 63
B134: Damien Singleton | C134: BCO 1 | D134: 2015-07-01 | E134: 2018-09-18 | F134: 1
B135: Damien Singleton | C135: Inspector 3 | D135: 2018-09-19 | E135: 3999-12-31 | F135: 33
B136: Daniel Kennedy | C136: BCO 1 | D136: 2015-07-01 | E136: 3999-12-31 | F136: 1
B137: Daniel Pau | C137: Opus Graduate | D137: 2015-07-01 | E137: 3999-12-31 | F137: 27
B138: Daniel Roh | C138: BCO 1 | D138: 2017-09-11 | E138: 3999-12-31 | F138: 1
B139: Danielle Yeoman (nee Bailey) | C139: Planner 2/3 | D139: 2015-07-01 | E139: 3999-12-31 | F139: 37
B140: Dannielle Heron | C140: Building Administrator | D140: 2015-07-01 | E140: 3999-12-31 | F140: 59
B141: Darryn Fenton | C141: BTW Structural | D141: 2015-07-01 | E141: 3999-12-31 | F141: 10
B142: Daryl Lim | C142: Drainage Site Audit 1 | D142: 2015-07-01 | E142: 3999-12-31 | F142: 50
B143: David Barry-Maculay | C143: Golder Associate Experienced | D143: 2015-07-01 | E143: 3999-12-31 | F143: 16
B144: David Hutt | C144: PBO/Specialist Engineer | D144: 2015-07-01 | E144: 3999-12-31 | F144: 5
B145: David Keohane | C145: Planner 2/3 | D145: 2015-07-01 | E145: 3999-12-31 | F145: 37
B146: David Lee | C146: GHD Expert | D146: 2015-07-01 | E146: 3999-12-31 | F146: 12
B147: David Mudu | C147: Calibre Experienced | D147: 2015-07-01 | E147: 3999-12-31 | F147: 61
B148: Debbie Laffey | C148: Planner 2/3 | D148: 2015-07-01 | E148: 3999-12-31 | F148: 37
B149: Di Liang | C149: BCO 1 | D149: 2017-09-18 | E149: 2020-04-14 | F149: 1
B150: Donna Chapman | C150: BCO 2 | D150: 2017-07-01 | E150: 3999-12-31 | F150: 2
B151: Donna Cooper | C151: Snr Engineer/Team manager | D151: 2015-07-01 | E151: 3999-12-31 | F151: 6
B152: Donnick Mugusto | C152: Spiire Experienced | D152: 2015-07-01 | E152: 3999-12-31 | F152: 21
B153: Doru Hozias | C153: PBO/Specialist Engineer | D153: 2015-07-01 | E153: 3999-12-31 | F153: 5
B154: DSC Group | C154: DSC Group | D154: 2016-09-01 | E154: 2017-01-25 | F154: 73
B155: DSC Group | C155: DSC Group | D155: 2017-01-26 | E155: 3999-12-31 | F155: 73
B156: Dylan Hunt | C156: Greenspace | D156: 2015-07-01 | E156: 3999-12-31 | F156: 49
B157: Ed Nystad | C157: PBO/Specialist Engineer | D157: 2015-07-01 | E157: 2020-11-01 | F157: 5
B158: Edwin Nystad | C158: PBO/Specialist Engineer | D158: 2015-07-01 | E158: 3999-12-31 | F158: 5
B159: Eddie Newman | C159: BCO 3 | D159: 2015-07-01 | E159: 2018-10-14 | F159: 3
B160: Eddie Newman | C160: Snr BCO/Specialists | D160: 2018-10-15 | E160: 3999-12-31 | F160: 4
B161: Elizabeth Alexander | C161: BCO 1 | D161: 2015-07-01 | E161: 3999-12-31 | F161: 1
B162: Elizabeth Ashwin | C162: BCO 3 | D162: 2019-10-03 | E162: 2020-11-01 | F162: 3
B163: Liz Ashwin | C163: BCO 3 | D163: 2019-10-03 | E163: 3999-12-31 | F163: 3
B164: Elizabeth Reeves | C164: BCO 1 | D164: 2015-07-01 | E164: 2016-09-22 | F164: 1
B165: Elizabeth Reeves | C165: DSC Group | D165: 2016-09-23 | E165: 2017-01-25 | F165: 73
B166: Elizabeth Reeves | C166: Inspector (DSC Group) | D166: 2017-01-26 | E166: 3999-12-31 | F166: 74
B167: Ellen Worthington | C167: Snr BCO/Specialists | D167: 2015-07-01 | E167: 3999-12-31 | F167: 4
B168: Emma Chapman | C168: Planner 2/3 | D168: 2015-07-01 | E168: 2018-05-01 | F168: 37
B169: Emma Chapman | C169: Planner Snr/Subdivision Officer etc | D169: 2018-05-02 | E169: 3999-12-31 | F169: 38
B170: Emma Taylor | C170: Planner Snr/Subdivision Officer etc | D170: 2015-07-01 | E170: 3999-12-31 | F170: 38
B171: Eria Metcalf | C171: Planner Snr/Subdivision Officer etc | D171: 2015-07-01 | E171: 2021-03-18 | F171: 38
B172: Erik Kunkel | C172: Opus Experienced | D172: 2015-07-01 | E172: 3999-12-31 | F172: 25
B173: Evan Stuthridge | C173: Inspector 3 | D173: 2017-10-24 | E173: 3999-12-31 | F173: 33
B174: Faye Arona | C174: Building Administrator | D174: 2015-07-01 | E174: 3999-12-31 | F174: 59
B175: Florian Risse | C175: Planner 2/3 | D175: 2015-07-01 | E175: 3999-12-31 | F175: 37
B176: Focus Consultancy | C176: Focus Consultancy | D176: 2015-07-01 | E176: 2017-01-25 | F176: 70
B177: Focus Consultancy | C177: Focus Consultancy | D177: 2017-01-26 | E177: 3999-12-31 | F177: 70
B178: Fons van Wamal | C178: BCO 2 | D178: 2015-07-01 | E178: 3999-12-31 | F178: 2
B179: Frank Wood | C179: Inspector (DSC Group) | D179: 2015-07-01 | E179: 2017-01-25 | F179: 74
B180: Frank Wood | C180: Inspector (DSC Group) | D180: 2017-01-26 | E180: 3999-12-31 | F180: 74
B181: Freya Barnard | C181: Building Administrator | D181: 2017-07-01 | E181: 3999-12-31 | F181: 59
B182: Gabrielle George | C182: Building Administrator | D182: 2015-07-01 | E182: 3999-12-31 | F182: 59
B183: Gavin Bailey | C183: BCO 1 | D183: 2015-07-01 | E183: 3999-12-31 | F183: 1
B184: George Enersen | C184: Planner 2/3 | D184: 2015-07-01 | E184: 3999-12-31 | F184: 37
B185: Georgia Brown | C185: Planner 2/3 | D185: 2015-07-01 | E185: 3999-12-31 | F185: 37
B186: Gina Sharp | C186: Building Administrator | D186: 2015-07-01 | E186: 3999-12-31 | F186: 59
B187: Gordon Taylor | C187: Drainage Site Audit 3 | D187: 2015-07-01 | E187: 3999-12-31 | F187: 52
B188: Grace Mitchell | C188: Vetting & Allocation | D188: 2015-07-01 | E188: 3999-12-31 | F188: 81
B189: Graham Brown | C189: Opus Experienced | D189: 2015-07-01 | E189: 3999-12-31 | F189: 25
B190: Graham Erikson | C190: Snr BCO/Specialists | D190: 2015-07-01 | E190: 3999-12-31 | F190: 4
B191: Graham Mcllory | C191: Snr BCO/Specialists | D191: 2015-07-01 | E191: 2018-08-31 | F191: 4
B192: Graham Mcllory | C192: PBO/Specialist Engineer | D192: 2018-09-01 | E192: 3999-12-31 | F192: 5
B193: Gray Packer | C193: BCO 2 | D193: 2015-07-01 | E193: 3999-12-31 | F193: 2
B194: Greg Paterson | C194: BCO 2 | D194: 2015-07-01 | E194: 2016-04-10 | F194: 2
B195: Greg Paterson | C195: BCO 3 | D195: 2016-04-11 | E195: 3999-12-31 | F195: 3
B196: Greg Sutherland | C196: PBO/Specialist Engineer | D196: 2015-07-01 | E196: 3999-12-31 | F196: 5
B197: Donna Grice | C197: Snr Engineer/Team manager | D197: 2015-07-01 | E197: 3999-12-31 | F197: 6
B198: Hamish Cocks | C198: BCO 2 | D198: 2015-07-01 | E198: 2016-04-10 | F198: 2
B199: Hamish Cocks | C199: BCO 3 | D199: 2016-04-11 | E199: 2020-04-14 | F199: 3
B200: Hanish Aroa | C200: Opus Intermediate | D200: 2015-07-01 | E200: 3999-12-31 | F200: 26
B201: Hariharan Vishnu | C201: Building Administrator | D201: 2019-06-24 | E201: 2020-11-01 | F201: 59
... 313 more rows

Sheet DedupedNames (hidden)
A1: Please Select
A2: Aaron Edwards
A3: Aaron Harrison
A4: Aaron Haymes
A5: Abdul Musif
A6: Adam Modica
A7: Adam Wang
A8: Adelina Pop
A9: Adrian Cosby
A10: Adrienne Slattery
A11: Agnes van der Erf
A12: Aimee Dodge
A13: Al Wilson
A14: Alan Wilson
A15: Alie Nieuwenhuize
A16: Alison Tang
A17: Alison Thompson
A18: Alistair Sharp
A19: Allen Pranesh
A20: Amarana Furminger
A21: Amber Watson
A22: Amon Brown
A23: Amy Barney
A24: Amy Clark
A25: Amy Doherty
A26: Amy Law
A27: Amy Maxwell
A28: Ana de Jong
A29: Ana Garrido Morales
A30: Andre Winkelman
A31: Andrei Cotiga
A32: Andrew Dimock
A33: Andrew Eames
A34: Andrew Long
A35: Andrew Smith
A36: Andrew Stewart
A37: Andy Christofferson
A38: Andy Lee
A39: Angela O'Reilly
A40: Anne Edwards
A41: Aradhna Dutt
A42: Atheel Allos
A43: Aurecon Expert
A44: Aurecon Experienced
A45: Avau Tito
A46: Azeema Aman
A47: Banny Singh
A48: Barbara Thomas
A49: Barbara Tomlinson
A50: Barry Hemming
A51: Bastien Ballu
A52: Bee Geok Chan
A53: Ben Healy
A54: Bex Hawksworth
A55: Bill Dray
A56: Bill Harrington
A57: Biswadeep Ghosh
A58: Bjorn Raasch
A59: Bob Pritchard
A60: Bogdan Balliu-Bottesch
A61: Bonnie Caesar
A62: Brenda Carter
A63: Brendon Guyton
A64: Brent Watkins
A65: Brian Norton
A66: Brian Wilson
A67: Bridget Crouch (nee Rowe)
A68: Bridget Rowe
A69: Brittany Bradley Cane
A70: Brittany Ratka
A71: Bruce Craig
A72: Bruce Lyon
A73: Bryan McKay
A74: BTW
A75: Calibre Consulting Ltd
A76: Callum Thornton
A77: Carlo Botha
A78: Cate McPherson
A79: Catherine Elvidge
A80: Catherine McPherson
A81: Catriona MacPherson
A82: Cecile Coll
A83: Charlotte Walsh
A84: Chen (Weng-Kei Chen)
A85: Chi Chi Wang
A86: Chloe Stewart
A87: Chris Beckham
A88: Chris D'Arth
A89: Chris Hewlett
A90: Chris van den Bosch
A91: City Certifiers
A92: Claire Barry
A93: Clare Dale (Revell)
A94: Claudia Stuart
A95: Clement Maloney
A96: Clive Anderson
A97: Colleen Jones
A98: Craig Marshall
A99: Damien Singleton
A100: Daniel Kennedy
A101: Daniel Pau
A102: Daniel Roh
A103: Danielle Yeoman (nee Bailey)
A104: Dannielle Heron
A105: Darryn Fenton
A106: Daryl Lim
A107: David Barry-Maculay
A108: David Hutt
A109: David Keohane
A110: David Lee
A111: David Mudu
A112: Debbie Laffey
A113: Di Liang
A114: Donna Chapman
A115: Donna Cooper
A116: Donnick Mugusto
A117: Doru Hozias
A118: DSC Group
A119: Dylan Hunt
A120: Ed Nystad
A121: Edwin Nystad
A122: Eddie Newman
A123: Elizabeth Alexander
A124: Elizabeth Ashwin
A125: Liz Ashwin
A126: Elizabeth Reeves
A127: Ellen Worthington
A128: Emma Chapman
A129: Emma Taylor
A130: Eria Metcalf
A131: Erik Kunkel
A132: Evan Stuthridge
A133: Faye Arona
A134: Florian Risse
A135: Focus Consultancy
A136: Fons van Wamal
A137: Frank Wood
A138: Freya Barnard
A139: Gabrielle George
A140: Gavin Bailey
A141: George Enersen
A142: Georgia Brown
A143: Gina Sharp
A144: Gordon Taylor
A145: Grace Mitchell
A146: Graham Brown
A147: Graham Erikson
A148: Graham Mcllory
A149: Gray Packer
A150: Greg Paterson
A151: Greg Sutherland
A152: Donna Grice
A153: Hamish Cocks
A154: Hanish Aroa
A155: Hariharan Vishnu
A156: Hari Kumar Vishnu
A157: Heath Wells
A158: Helen Bealey
A159: Helen Hay
A160: Helene Kirpensteijn
A161: Hermione Blair
A162: Holly Gardiner
A163: Holly Luzak
A164: Holmes Fire Expert
A165: Holmes Fire Experienced
A166: Huw Parker
A167: Ian Carstens
A168: Ian Craig
A169: Iris Brookland
A170: Ian Burford
A171: Ian Johnson
A172: Isobel Garland
A173: Isobel Stout
A174: Jindina Locke
A175: James Dismuke
A176: James Kwon
A177: James Marsh
A178: Jan Bochow
A179: Jan Steenkamp
A180: Jason Dean
A181: Jason King
A182: Jason Roberts
A183: Jeck Icaro
A184: Jeffrey XU
A185: Jennifer Clarke
A186: Jennifer van Heerden
A187: Jeremy Chang
A188: Jessica Manhire
A189: Jessy Roberts
A190: Jill Ryan
A191: Jim Nguyen
A192: Jim Thompson
A193: Jo McAfee
A194: Jo Rayne
A195: Joanna Petheram
A196: Johan Dalkie
A197: John Blackwell
A198: John Gibson
A199: John Hargraves
A200: John Higgins
... 211 more rows

Sheet Role Fee Structure (hidden)
B2: Role | C2: Role Value2 | D2: Effective Start Date | E2: Effective End Date | F2: 2016 | G2: 2017 | H2: 2018 | I2: 2019 | J2: 2020 | K2: 2021 | L2: 2022 | M2: F13 | N2: F14 | O2: F15 | P2: F16 | Q2: F17 | R2: F18 | S2: F19 | T2: F20 | U2: F21 | V2: F22 | W2: F23 | X2: F24 | Y2: F25 | Z2: F26 | AA2: F27 | AB2: F28
B3: Please Select | F3: 0 | G3: 0 | H3: 0 | I3: 0 | J3: 0 | K3: 0
B4: BCO 1 | C4: 1 | D4: 2015-07-01 | E4: 3999-12-31 | F4: 173 | G4: 173 | H4: 210 | I4: 210 | J4: 210 | K4: 210 | AA4: Num Dates | AB4: 7
B5: BCO 2 | C5: 2 | D5: 2015-07-01 | E5: 3999-12-31 | F5: 200 | G5: 200 | H5: 210 | I5: 210 | J5: 210 | K5: 210 | AA5: Num Rows | AB5: 87
B6: BCO 3 | C6: 3 | D6: 2015-07-01 | E6: 3999-12-31 | F6: 220 | G6: 220 | H6: 210 | I6: 210 | J6: 210 | K6: 210
B7: Snr BCO/Specialists | C7: 4 | D7: 2015-07-01 | E7: 3999-12-31 | F7: 236 | G7: 236 | H7: 243 | I7: 245 | J7: 245 | K7: 245
B8: PBO/Specialist Engineer | C8: 5 | D8: 2015-07-01 | E8: 3999-12-31 | F8: 273 | G8: 273 | H8: 275 | I8: 275 | J8: 275 | K8: 275
B9: Snr Engineer/Team Manager | C9: 6 | D9: 2015-07-01 | E9: 3999-12-31 | F9: 294 | G9: 294 | H9: 294 | I9: 294 | J9: 294 | K9: 294
B10: Ext Spec/Consult Expert | C10: 7 | D10: 2015-07-01 | E10: 3999-12-31 | F10: 0 | G10: 0 | H10: 0 | I10: 0 | J10: 0 | K10: 0
B11: Aurecon Expert | C11: 8 | D11: 2015-07-01 | E11: 3999-12-31 | F11: 330 | G11: 330 | H11: 330 | I11: 330 | J11: 330 | K11: 330
B12: Aurecon Experienced | C12: 9 | D12: 2015-07-01 | E12: 3999-12-31 | F12: 265 | G12: 265 | H12: 265 | I12: 265 | J12: 265 | K12: 265
B13: BTW Structural | C13: 10 | D13: 2015-07-01 | E13: 3999-12-31 | F13: 225 | G13: 225 | H13: 225 | I13: 225 | J13: 225 | K13: 225
B14: DSC Group | C14: 73 | D14: 2016-09-01 | E14: 2017-01-25 | F14: 157.55 | G14: 157.55 | H14: 157.55 | I14: 157.55 | J14: 157.55 | K14: 157.55
B15: DSC Group | C15: 73 | D15: 2017-01-26 | E15: 3999-12-31 | F15: 200 | G15: 200 | H15: 210 | I15: 210 | J15: 210 | K15: 210
B16: Fire Matters | C16: 11 | D16: 2015-07-01 | E16: 3999-12-31 | F16: 235 | G16: 235 | H16: 235 | I16: 235 | J16: 235 | K16: 235
B17: GHD Expert | C17: 12 | D17: 2015-07-01 | E17: 3999-12-31 | F17: 260 | G17: 260 | H17: 260 | I17: 294 | J17: 294 | K17: 294
B18: GHD Experienced | C18: 13 | D18: 2015-07-01 | E18: 3999-12-31 | F18: 220 | G18: 220 | H18: 220 | I18: 294 | J18: 294 | K18: 294
B19: GHD Intermediate | C19: 14 | D19: 2015-07-01 | E19: 3999-12-31 | F19: 185 | G19: 185 | H19: 185 | I19: 275 | J19: 275 | K19: 275
B20: Golder Associate Expert | C20: 15 | D20: 2015-07-01 | E20: 3999-12-31 | F20: 375 | G20: 375 | H20: 375 | I20: 294 | J20: 294 | K20: 294
B21: Golder Associate Experienced | C21: 16 | D21: 2015-07-01 | E21: 3999-12-31 | F21: 265 | G21: 265 | H21: 265 | I21: 294 | J21: 294 | K21: 294
B22: Golder Associate Intermediate | C22: 17 | D22: 2015-07-01 | E22: 3999-12-31 | F22: 230 | G22: 230 | H22: 230 | I22: 275 | J22: 275 | K22: 275
B23: Holmes Fire Expert | C23: 18 | D23: 2015-07-01 | E23: 3999-12-31 | F23: 305 | G23: 305 | H23: 305 | I23: 0 | J23: 0 | K23: 0
B24: Holmes Fire Experienced | C24: 19 | D24: 2015-07-01 | E24: 3999-12-31 | F24: 295 | G24: 295 | H24: 295 | I24: 0 | J24: 0 | K24: 0
B25: Spiire Expert | C25: 20 | D25: 2015-07-01 | E25: 3999-12-31 | F25: 0 | G25: 0 | H25: 0 | I25: 0 | J25: 0 | K25: 0
B26: Spiire Experienced | C26: 21 | D26: 2015-07-01 | E26: 3999-12-31 | F26: 235 | G26: 235 | H26: 235 | I26: 294 | J26: 294 | K26: 294
B27: Spiire Intermediate | C27: 22 | D27: 2015-07-01 | E27: 3999-12-31 | F27: 210 | G27: 210 | H27: 210 | I27: 275 | J27: 275 | K27: 275
B28: WSP | C28: 23 | D28: 2015-07-01 | E28: 3999-12-31 | F28: 250 | G28: 250 | H28: 250 | I28: 0 | J28: 0 | K28: 0
B29: Fire Review Solutions | C29: 24 | D29: 2015-07-01 | E29: 3999-12-31 | F29: 235 | G29: 235 | H29: 235 | I29: 294 | J29: 294 | K29: 294
B30: WSP Experienced | C30: 25 | D30: 2021-02-17 | E30: 3999-12-31 | F30: 265 | G30: 265 | H30: 265 | I30: 294 | J30: 294 | K30: 294
B31: WSP Intermediate | C31: 26 | D31: 2021-02-17 | E31: 3999-12-31 | F31: 205 | G31: 205 | H31: 205 | I31: 275 | J31: 275 | K31: 275
B32: WSP Graduate | C32: 27 | D32: 2021-02-17 | E32: 3999-12-31 | F32: 200 | G32: 200 | H32: 200 | I32: 275 | J32: 275 | K32: 275
B33: Opus Experienced | C33: 25 | D33: 2015-07-01 | E33: 2021-02-16 | F33: 265 | G33: 265 | H33: 265 | I33: 294 | J33: 294 | K33: 294
B34: Opus Intermediate | C34: 26 | D34: 2015-07-01 | E34: 2021-02-16 | F34: 205 | G34: 205 | H34: 205 | I34: 275 | J34: 275 | K34: 275
B35: Opus Graduate | C35: 27 | D35: 2015-07-01 | E35: 2021-02-16 | F35: 200 | G35: 200 | H35: 200 | I35: 275 | J35: 275 | K35: 275
B36: Watkins | C36: 28 | D36: 2015-07-01 | E36: 2016-08-25 | F36: 149.5 | G36: 149.5 | H36: 149.5 | I36: 149.5 | J36: 149.5 | K36: 149.5
B37: Watkins | C37: 28 | D37: 2016-08-26 | E37: 3999-12-31 | F37: 157.55 | G37: 157.55 | H37: 157.55 | I37: 157.55 | J37: 157.55 | K37: 157.55
B38: Ext Spec/Consult Experienced | C38: 29 | D38: 2015-07-01 | E38: 3999-12-31 | F38: 265 | G38: 265 | H38: 265 | I38: 294 | J38: 294 | K38: 294
B39: Building Inspection Coord | C39: 30 | D39: 2015-07-01 | E39: 3999-12-31 | F39: 115 | G39: 115 | H39: 120 | I39: 120 | J39: 120 | K39: 120
B40: Inspector 1 | C40: 31 | D40: 2015-07-01 | E40: 3999-12-31 | F40: 173 | G40: 173 | H40: 210 | I40: 210 | J40: 210 | K40: 210
B41: Inspector 2 | C41: 32 | D41: 2015-07-01 | E41: 3999-12-31 | F41: 200 | G41: 200 | H41: 210 | I41: 210 | J41: 210 | K41: 210
B42: Inspector 3 | C42: 33 | D42: 2015-07-01 | E42: 3999-12-31 | F42: 220 | G42: 220 | H42: 210 | I42: 210 | J42: 210 | K42: 210
B43: Specialist Task Facilitator | C43: 34 | D43: 2015-07-01 | E43: 3999-12-31 | F43: 173 | G43: 173 | H43: 178 | I43: 180 | J43: 180 | K43: 180
B44: Team Manager | C44: 35 | D44: 2015-07-01 | E44: 3999-12-31 | F44: 294 | G44: 294 | H44: 294 | I44: 294 | J44: 294 | K44: 294
B45: Planner Admin | C45: 36 | D45: 2015-07-01 | E45: 3999-12-31 | F45: 100 | G45: 100 | H45: 105 | I45: 105 | J45: 105 | K45: 105
B46: Planner 2/3 | C46: 37 | D46: 2015-07-01 | E46: 3999-12-31 | F46: 180 | G46: 180 | H46: 185 | I46: 185 | J46: 185 | K46: 185
B47: Planner Snr/Subdivision Officer etc | C47: 38 | D47: 2015-07-01 | E47: 3999-12-31 | F47: 200 | G47: 200 | H47: 200 | I47: 200 | J47: 200 | K47: 200
B48: Internal Spec - Jnr/Int | C48: 39 | D48: 2015-07-01 | E48: 3999-12-31 | F48: 180 | G48: 180 | H48: 185 | I48: 185 | J48: 185 | K48: 185
B49: Internal Spec - Snr | C49: 40 | D49: 2015-07-01 | E49: 3999-12-31 | F49: 200 | G49: 200 | H49: 205 | I49: 205 | J49: 205 | K49: 205
B50: Subdivision Advisory | C50: 41 | D50: 2015-07-01 | E50: 3999-12-31 | F50: 200 | G50: 200 | H50: 200 | I50: 200 | J50: 200 | K50: 200
B51: Subdivision Officer | C51: 42 | D51: 2015-07-01 | E51: 3999-12-31 | F51: 200 | G51: 200 | H51: 200 | I51: 200 | J51: 200 | K51: 200
B52: Subdivision Engineer | C52: 43 | D52: 2015-07-01 | E52: 3999-12-31 | F52: 200 | G52: 200 | H52: 200 | I52: 205 | J52: 205 | K52: 205
B53: Fire & Civil Eng Input | C53: 44 | D53: 2015-07-01 | E53: 3999-12-31 | F53: 200 | G53: 200 | H53: 200 | I53: 200 | J53: 200 | K53: 200
B54: Stormwater Eng | C54: 45 | D54: 2015-07-01 | E54: 3999-12-31 | F54: 200 | G54: 200 | H54: 200 | I54: 205 | J54: 205 | K54: 205
B55: Arborist/Tree protection | C55: 46 | D55: 2015-07-01 | E55: 3999-12-31 | F55: 180 | G55: 180 | H55: 180 | I55: 185 | J55: 185 | K55: 185
B56: EHO (NES input) | C56: 47 | D56: 2015-07-01 | E56: 3999-12-31 | F56: 200 | G56: 200 | H56: 200 | I56: 205 | J56: 205 | K56: 205
B57: Roading input | C57: 48 | D57: 2015-07-01 | E57: 3999-12-31 | F57: 200 | G57: 200 | H57: 200 | I57: 205 | J57: 205 | K57: 205
B58: Greenspace | C58: 49 | D58: 2015-07-01 | E58: 3999-12-31 | F58: 225 | G58: 225 | H58: 225 | I58: 205 | J58: 205 | K58: 205
B59: Drainage Site Audit 1 | C59: 50 | D59: 2015-07-01 | E59: 3999-12-31 | F59: 200 | G59: 200 | H59: 200 | I59: 205 | J59: 205 | K59: 205
B60: Drainage Site Audit 2 | C60: 51 | D60: 2015-07-01 | E60: 3999-12-31 | F60: 150 | G60: 150 | H60: 150 | I60: 155 | J60: 155 | K60: 155
B61: Drainage Site Audit 3 | C61: 52 | D61: 2015-07-01 | E61: 3999-12-31 | F61: 180 | G61: 180 | H61: 180 | I61: 185 | J61: 185 | K61: 185
B62: Water Supply Plan 1 | C62: 53 | D62: 2015-07-01 | E62: 3999-12-31 | F62: 180 | G62: 180 | H62: 180 | I62: 185 | J62: 185 | K62: 185
B63: Water Supply Plan Tec 2 | C63: 54 | D63: 2015-07-01 | E63: 3999-12-31 | F63: 150 | G63: 150 | H63: 150 | I63: 155 | J63: 155 | K63: 155
B64: Water Supply Audit/Clearance | C64: 55 | D64: 2015-07-01 | E64: 3999-12-31 | F64: 200 | G64: 200 | H64: 200 | I64: 205 | J64: 205 | K64: 205
B65: As Built Info | C65: 56 | D65: 2015-07-01 | E65: 3999-12-31 | F65: 180 | G65: 180 | H65: 180 | I65: 185 | J65: 185 | K65: 185
B66: Pumping Station Clearances | C66: 57 | D66: 2015-07-01 | E66: 3999-12-31 | F66: 180 | G66: 180 | H66: 180 | I66: 185 | J66: 185 | K66: 185
B67: Legal Services | C67: 58 | D67: 2015-07-01 | E67: 3999-12-31 | F67: 200 | G67: 200 | H67: 200 | I67: 200 | J67: 200 | K67: 200
B68: Building Administrator | C68: 59 | D68: 2015-07-01 | E68: 3999-12-31 | F68: 115 | G68: 115 | H68: 120 | I68: 120 | J68: 120 | K68: 120
B69: Other | C69: 60 | D69: 2015-07-01 | E69: 3999-12-31 | F69: 0 | G69: 0 | H69: 0 | I69: 0 | J69: 0 | K69: 0
B70: Inspector (DSC Group) | C70: 74 | D70: 2015-07-01 | E70: 2017-01-25 | F70: 178.25 | G70: 178.25 | H70: 178.25 | I70: 178.25 | J70: 178.25 | K70: 178.25
B71: Inspector (DSC Group) | C71: 74 | D71: 2017-01-26 | E71: 3999-12-31 | F71: 200 | G71: 200 | H71: 200 | I71: 200 | J71: 200 | K71: 200
B72: Calibre Experienced | C72: 61 | D72: 2015-07-01 | E72: 3999-12-31 | F72: 235 | G72: 235 | H72: 235 | I72: 275 | J72: 275 | K72: 275
B73: Regulatory Advice Officer | C73: 62 | D73: 2015-07-01 | E73: 3999-12-31 | F73: 115 | G73: 115 | H73: 120 | I73: 120 | J73: 120 | K73: 120
B74: Planning Technician | C74: 63 | D74: 2015-07-01 | E74: 3999-12-31 | F74: 150 | G74: 150 | H74: 155 | I74: 155 | J74: 155 | K74: 155
B75: City Certifiers | C75: 64 | D75: 2015-07-01 | E75: 2016-04-30 | F75: 149.5 | G75: 149.5 | H75: 149.5 | I75: 149.5 | J75: 149.5 | K75: 149.5
B76: City Certifiers | C76: 64 | D76: 2016-05-01 | E76: 2017-01-25 | F76: 172.5 | G76: 172.5 | H76: 172.5 | I76: 172.5 | J76: 172.5 | K76: 172.5
B77: City Certifiers | C77: 64 | D77: 2017-01-26 | E77: 3999-12-31 | F77: 200 | G77: 200 | H77: 210 | I77: 210 | J77: 210 | K77: 210
B78: Planning Engineer | C78: 66 | D78: 2015-07-01 | E78: 3999-12-31 | F78: 236 | G78: 236 | H78: 236 | I78: 236 | J78: 236 | K78: 236
B79: Golder Associate Experienced | C79: 67 | D79: 2015-07-01 | E79: 3999-12-31 | F79: 315 | G79: 315 | H79: 315 | I79: 294 | J79: 294 | K79: 294
B80: Beca Fire Engineering | C80: 68 | D80: 2015-07-01 | E80: 3999-12-31 | F80: 265 | G80: 265 | H80: 265 | I80: 275 | J80: 275 | K80: 275
B81: Davis Ogilvie | C81: 69 | D81: 2015-07-01 | E81: 3999-12-31 | F81: 215 | G81: 215 | H81: 215 | I81: 275 | J81: 275 | K81: 275
B82: Focus Consultancy | C82: 70 | D82: 2015-07-01 | E82: 2017-01-25 | F82: 149.5 | G82: 149.5 | H82: 149.5 | I82: 149.5 | J82: 149.5 | K82: 149.5
B83: Focus Consultancy | C83: 70 | D83: 2017-01-26 | E83: 3999-12-31 | F83: 200 | G83: 200 | H83: 210 | I83: 210 | J83: 210 | K83: 210
B84: PBC | C84: 78 | D84: 2015-07-01 | E84: 3999-12-31 | F84: 200 | G84: 200 | H84: 210 | I84: 210 | J84: 210 | K84: 210
B85: Building Officers (BWOF) | C85: 79 | D85: 2015-07-01 | E85: 3999-12-31 | F85: 173 | G85: 173 | H85: 178 | I85: 180 | J85: 180 | K85: 180
B86: Senior Buidling Officer (BWOF) | C86: 80 | D86: 2015-07-01 | E86: 3999-12-31 | F86: 220 | G86: 220 | H86: 243 | I86: 245 | J86: 245 | K86: 245
B87: Vetting & Allocation | C87: 81 | D87: 2015-07-01 | E87: 3999-12-31 | F87: 173 | G87: 173 | H87: 178 | I87: 180 | J87: 180 | K87: 180
B88: Environmental Health Officer | C88: 76 | D88: 2016-07-01 | E88: 3999-12-31 | F88: 0 | G88: 0 | H88: 120 | I88: 120 | J88: 120 | K88: 210
B89: Stephenson & Turner Fire Exp | C89: 82 | D89: 2017-12-15 | E89: 3999-12-31 | F89: 0 | G89: 243 | H89: 243 | I89: 294 | J89: 294 | K89: 294
B90: do not select | C90: 90 | D90: 2015-07-01 | E90: 3999-12-31 | F90: 0 | G90: 0 | H90: 0 | I90: 0 | J90: 0 | K90: 0
